fUSD/lending_fUSD_20250804
["ID","MTS","AMOUNT","RATE_DAILY","PERIOD"]
[377208032,1754290388294,-400.0,0.00047943,120]
[377208033,1754290388303,-400.0,0.00047943,120]
[377208034,1754290388312,-965.01,0.00047943,120]
[377208035,1754290388321,-1321.39,0.00047943,120]
[377208036,1754290388330,-400.0,0.00047943,120]
[377208037,1754290388340,-604.76,0.00047943,120]
[377208038,1754290388349,-400.0,0.00047943,120]
[377208039,1754290388359,-1025.37,0.00047943,120]
[377208040,1754290388369,-1457.38,0.00047943,120]
[377208041,1754290388378,-852.5,0.00047943,120]
[377208042,1754290388388,-1520.01,0.00047943,120]
[377208043,1754290388397,-607.36,0.00047943,120]
[377208044,1754290388407,-400.0,0.00047943,120]
[377208045,1754290388416,-400.0,0.00047943,120]
[377208046,1754290388425,-834.0,0.00047943,120]
[377208047,1754290388435,-650.45,0.00047943,120]
[377208048,1754290388444,-666.91,0.00047943,120]
[377208049,1754290388453,-400.0,0.00047943,120]
[377208050,1754290388463,-531.65,0.00047943,120]
[377208051,1754290388473,-1125.68,0.00047943,120]
[377208052,1754290388482,-609.72,0.00047943,120]
[377208053,1754290388492,-500.0,0.00047943,120]
[377208054,1754290388502,-400.0,0.00047943,120]
[377208055,1754290388510,-434.85,0.00047943,120]
[377208056,1754290388520,-400.0,0.00047943,120]
[377208057,1754290388529,-1398.86,0.00047943,120]
[377208058,1754290388538,-919.11,0.00047943,120]
[377208059,1754290388547,-1014.5,0.00047943,120]
[377208060,1754290388556,-400.0,0.00047943,120]
[377208061,1754290388566,-668.1,0.00047943,60]
[377208062,1754290388578,-400.0,0.00047943,120]
[377208063,1754290388588,-400.0,0.00047943,120]
[377208064,1754290388599,-400.0,0.00047943,120]
[377208065,1754290388610,-699.35,0.00047943,120]
[377208066,1754290388621,-177.821078,0.00047943,14]
[377208067,1754290388632,-421.68,0.00047943,120]
[377208068,1754290388642,-684.22,0.00047943,120]
[377208069,1754290388655,-400.0,0.00047943,120]
[377208070,1754290388664,-400.0,0.00047943,120]
[377208071,1754290388674,-1119.51,0.00047943,120]
[377208072,1754290388683,-1124.99,0.00047943,120]
[377208073,1754290388692,-400.0,0.00047943,120]
[377208074,1754290388702,-719.07,0.00047943,120]
[377208075,1754290388715,-400.0,0.00047943,120]
[377208076,1754290388724,-583.14,0.00047943,120]
[377208077,1754290388733,-400.0,0.00047943,120]
[377208078,1754290388743,-757.99,0.00047943,120]
[377208079,1754290388755,-400.0,0.00047943,120]
[377208080,1754290388765,-1193.25,0.00047943,120]
[377208081,1754290388777,-400.0,0.00047943,120]
[377208082,1754290388789,-767.2,0.00047943,120]
[377208083,1754290388798,-493.62,0.00047943,120]
[377208084,1754290388808,-400.0,0.00047943,120]
[377208085,1754290388819,-400.0,0.00047943,120]
[377208086,1754290388830,-400.0,0.00047943,120]
[377208087,1754290388840,-1684.73,0.00047943,120]
[377208088,1754290388851,-400.0,0.00047943,120]
[377208089,1754290388862,-642.85,0.00047943,120]
[377208090,1754290388873,-1144.48,0.00047943,120]
[377208091,1754290388883,-436.81,0.00047943,120]
[377208092,1754290388894,-400.0,0.00047943,120]
[377208093,1754290388905,-497.01,0.00047943,120]
[377208094,1754290388915,-1385.55,0.00047943,120]
[377208095,1754290388924,-400.0,0.00047943,120]
[377208096,1754290388934,-400.0,0.00047943,120]
[377208097,1754290388946,-711.19,0.00047943,120]
[377208098,1754290388961,-1373.04,0.00047943,120]
[377208099,1754290388971,-400.0,0.00047943,120]
[377208100,1754290388981,-400.0,0.00047943,120]
[377208101,1754290388991,-490.34765072,0.00047943,120]
[377208102,1754290389000,-1677.71,0.00047943,120]
[377208103,1754290389010,-400.0,0.00047943,120]
[377208104,1754290389019,-400.0,0.00047943,120]
[377208105,1754290389029,-1070.14,0.00047943,120]
[377208106,1754290389153,-400.0,0.00047943,120]
[377208107,1754290389163,-1221.48,0.00047943,120]
[377208108,1754290389173,-400.0,0.00047943,120]
[377208109,1754290389182,-506.15,0.00047943,120]
[377208110,1754290389192,-400.0,0.00047943,120]
[377208111,1754290389202,-400.0,0.00047943,120]
[377208112,1754290389211,-400.0,0.00047943,120]
[377208113,1754290389221,-813.29,0.00047943,120]
[377208114,1754290389231,-1157.7,0.00047943,120]
[377208115,1754290389241,-400.0,0.00047943,120]
[377208116,1754290389250,-388.224222,0.00047943,120]
[377208117,1754290389261,-400.0,0.00047943,120]
[377208118,1754290389270,-400.0,0.00047943,120]
[377208119,1754290389280,-502.19,0.00047943,120]
[377208120,1754290389289,-386.74203045,0.00047943,120]
[377208121,1754290389299,-400.0,0.00047943,120]
[377208122,1754290389310,-400.0,0.00047943,120]
[377208123,1754290389319,-400.0,0.00047943,120]
[377208124,1754290389328,-1186.51,0.00047943,120]
[377208125,1754290389338,-577.15,0.00047943,120]
[377208126,1754290389347,-400.0,0.00047943,120]
[377208127,1754290389357,-440.08,0.00047943,120]
[377208128,1754290389367,-400.0,0.00047943,120]
[377208129,1754290389377,-400.0,0.00047943,120]
[377208130,1754290389387,-400.0,0.00047943,120]
[377208131,1754290389397,-400.0,0.00047943,120]
[377208132,1754290389407,-1282.55,0.00047943,120]
[377208133,1754290389416,-428.3,0.00047943,120]
[377208134,1754290389426,-650.0,0.00047943,120]
[377208135,1754290389435,-400.0,0.00047943,120]
[377208136,1754290389445,-943.82,0.00047943,120]
[377208137,1754290389454,-403.35596363,0.00047943,120]
[377208138,1754290389464,-400.0,0.00047943,120]
[377208139,1754290389473,-400.0,0.00047943,120]
[377208140,1754290389483,-400.0,0.00047943,120]
[377208141,1754290389492,-806.05,0.00047943,120]
[377208142,1754290389502,-952.84,0.00047943,120]
[377208143,1754290389511,-151.0,0.00047944,14]
[377208144,1754290389521,-220.605142,0.00047944,14]
[377208145,1754290389530,-151.0,0.00047944,14]
[377208146,1754290389539,-231.016692,0.00047944,14]
[377208147,1754290389549,-231.016692,0.00047944,14]
[377208148,1754290389558,-265.56698,0.00047944,14]
[377208149,1754290389569,-265.56698,0.00047944,14]
[377208150,1754290389579,-151.0,0.00047944,14]
[377208151,1754290389589,-151.0,0.00047944,14]
[377208152,1754290389598,-151.0,0.00047944,14]
[377208153,1754290389608,-223.433648,0.00047944,14]
[377208154,1754290389617,-223.433648,0.00047944,14]
[377208155,1754290389626,-294.898648,0.00047944,14]
[377208156,1754290389635,-294.898648,0.00047944,14]
[377208157,1754290389645,-157.134854,0.00047944,14]
[377208158,1754290389656,-157.134854,0.00047944,14]
[377208159,1754290389665,-247.687436,0.00047944,14]
[377208160,1754290389675,-247.687436,0.00047944,14]
[377208161,1754290389684,-161.047084,0.00047944,14]
[377208162,1754290389694,-161.047084,0.00047944,14]
[377208163,1754290389706,-151.0,0.00047944,14]
[377208164,1754290389715,-1100.823876,0.00047944,14]
[377208165,1754290389725,-1100.823876,0.00047944,14]
[377208166,1754290389735,-212.283583,0.00047944,14]
[377208167,1754290389747,-151.0,0.00047944,14]
[377208168,1754290389757,-212.283583,0.00047944,14]
[377208169,1754290389767,-151.0,0.00047944,14]
[377208170,1754290389779,-400.0,0.00047944,120]
[377208171,1754290389789,-400.0,0.00047944,120]
[377208172,1754290389800,-505.14542709,0.00047944,120]
[377208173,1754290389810,-277.707319,0.00047944,14]
[377208174,1754290389820,-151.0,0.00047944,14]
[377208175,1754290389830,-277.707319,0.00047944,14]
[377208176,1754290389839,-1561.925184,0.00047944,14]
[377208177,1754290389849,-1561.925184,0.00047944,14]
[377208178,1754290389858,-151.0,0.00047944,14]
[377208179,1754290389868,-606.53,0.00047944,120]
[377208180,1754290389878,-400.0,0.00047944,120]
[377208181,1754290389888,-402.92,0.00047944,120]
[377208182,1754290389899,-400.0,0.00047944,120]
[377208183,1754290389908,-1022.63,0.00047944,120]
[377208184,1754290389918,-400.0,0.00047944,120]
[377208185,1754290389928,-1517.31,0.00047944,120]
[377208186,1754290389938,-2719.87,0.00047944,118]
[377208187,1754290389947,-380.39771943,0.00047944,120]
[377208188,1754290389957,-1594.58,0.00047944,120]
[377208189,1754290389967,-7975.55,0.00047944,120]
[377208190,1754290389976,-614.98,0.00047944,120]
[377208191,1754290389986,-40298.20015719,0.00047944,30]
[377208192,1754290389996,-151.848957,0.00047945,14]
[377208193,1754290390006,-153.229771,0.00047945,14]
[377208194,1754290390016,-151.0,0.00047945,14]
[377208195,1754290390026,-151.0,0.00047945,14]
[377208196,1754290390036,-231.561432,0.00047945,14]
[377208197,1754290390046,-231.561432,0.00047945,14]
[377208198,1754290390056,-151.0,0.00047945,14]
[377208199,1754290390066,-151.0,0.00047945,14]
[377208200,1754290390076,-152.931534,0.00047945,14]
[377208201,1754290390086,-251.973677,0.00047945,14]
[377208202,1754290390096,-251.973677,0.00047945,14]
[377208203,1754290390106,-151.0,0.00047945,14]
[377208204,1754290390116,-316.070445,0.00047945,14]
[377208205,1754290390126,-316.070445,0.00047945,14]
[377208206,1754290390136,-151.0,0.00047945,14]
[377208207,1754290390146,-225.618632,0.00047945,14]
[377208208,1754290390156,-400.0,0.00047945,120]
[377208209,1754290390166,-335.424605,0.00047945,14]
[377208210,1754290390176,-335.424605,0.00047945,14]
[377208211,1754290390185,-833.14,0.00047945,120]
[377208212,1754290390195,-400.0,0.00047945,120]
[377208213,1754290390205,-400.0,0.00047945,120]
[377208214,1754290390215,-494.2,0.00047945,120]
[377208215,1754290390224,-400.0,0.00047945,120]
[377208216,1754290390234,-519.35,0.00047945,120]
[377208217,1754290390244,-400.0,0.00047945,120]
[377208218,1754290390254,-519.18,0.00047945,120]
[377208219,1754290390264,-1160.29,0.00047945,120]
[377208220,1754290390273,-405.08695427,0.00047945,120]
[377208221,1754290390283,-873.2,0.00047945,120]
[377208222,1754290390292,-1631.73,0.00047945,120]
[377208223,1754290390302,-1028.43,0.00047945,120]
[377208224,1754290390311,-544.09,0.00047945,120]
[377208225,1754290390321,-400.0,0.00047945,120]
[377208226,1754290390331,-400.0,0.00047945,120]
[377208227,1754290390341,-986.53,0.00047945,120]
[377208228,1754290390350,-400.0,0.00047945,120]
[377208229,1754290390359,-400.0,0.00047945,120]
[377208230,1754290390369,-1075.35,0.00047945,120]
[377208231,1754290390378,-574.06,0.00047945,120]
[377208232,1754290390388,-1000.0,0.00047945,120]
[377208233,1754290390399,-719.27,0.00047945,30]
[377208234,1754290390408,-643.54,0.00047945,120]
[377208235,1754290390418,-400.0,0.00047945,120]
[377208236,1754290390427,-1004.04,0.00047945,120]
[377208237,1754290390437,-400.0,0.00047945,120]
[377208238,1754290390446,-238.16238274,0.00047945,120]
[377208239,1754290390456,-898.59,0.00047945,120]
[377208240,1754290390468,-400.0,0.00047945,120]
[377208241,1754290390478,-1039.58,0.00047945,120]
[377208242,1754290390488,-400.0,0.00047945,120]
[377208243,1754290390498,-400.0,0.00047945,120]
[377208244,1754290390508,-400.0,0.00047945,120]
[377208245,1754290390518,-151.0,0.00047945,14]
[377208246,1754290390527,-171.384427,0.00047945,14]
[377208247,1754290390538,-400.0,0.00047945,120]
[377208248,1754290390547,-665.08,0.00047945,120]
[377208249,1754290390556,-400.0,0.00047945,120]
[377208250,1754290390566,-826.15,0.00047945,120]
[377208251,1754290390576,-1346.51,0.00047945,120]
[377208252,1754290390585,-400.0,0.00047945,120]
[377208253,1754290390595,-466.13,0.00047945,120]
[377208254,1754290390605,-653.67,0.00047945,120]
[377208255,1754290390615,-192.2614803,0.00047945,120]
[377208256,1754290390625,-1027.78,0.00047945,120]
[377208257,1754290390634,-604.06,0.00047945,120]
[377208258,1754290390644,-1589.09,0.00047945,120]
[377208259,1754290390655,-1584.22,0.00047945,120]
[377208260,1754290390664,-1231.52,0.00047945,120]
[377208261,1754290390673,-400.0,0.00047945,120]
[377208262,1754290390682,-1206.73,0.00047945,120]
[377208263,1754290390692,-400.0,0.00047945,120]
[377208264,1754290390703,-400.0,0.00047945,120]
[377208265,1754290390715,-400.0,0.00047945,120]
[377208266,1754290390724,-400.0,0.00047945,120]
[377208267,1754290390733,-400.0,0.00047945,120]
[377208268,1754290390742,-931.11,0.00047945,120]
[377208269,1754290390751,-400.0,0.00047945,120]
[377208270,1754290390761,-400.0,0.00047945,120]
[377208271,1754290390770,-400.0,0.00047945,120]
[377208272,1754290390779,-400.0,0.00047945,120]
[377208273,1754290390789,-796.71,0.00047945,120]
[377208274,1754290390799,-400.0,0.00047945,120]
[377208275,1754290390808,-1101.07,0.00047945,120]
[377208276,1754290390818,-523.21,0.00047945,120]
[377208277,1754290390827,-750.21,0.00047945,120]
[377208278,1754290390836,-509.2,0.00047945,120]
[377208279,1754290390845,-400.0,0.00047945,120]
[377208280,1754290390855,-151.0,0.00047945,14]
[377208281,1754290390864,-400.0,0.00047945,120]
[377208282,1754290390874,-1170.49,0.00047945,120]
[377208283,1754290390883,-400.0,0.00047945,120]
[377208284,1754290390893,-700.78,0.00047945,120]
[377208285,1754290390903,-400.0,0.00047945,120]
[377208286,1754290390913,-506.67,0.00047945,120]
[377208287,1754290390922,-400.0,0.00047945,120]
[377208288,1754290390933,-400.0,0.00047945,120]
[377208289,1754290390943,-400.0,0.00047945,120]
[377208290,1754290390952,-881.14,0.00047945,120]
[377208291,1754290390962,-742.85,0.00047945,120]
[377208292,1754290390972,-400.0,0.00047945,120]
[377208293,1754290390981,-454.17,0.00047945,120]
[377208294,1754290390991,-1865.77,0.00047945,120]
[377208295,1754290391000,-564.64,0.00047945,60]
[377208296,1754290391009,-1526.94,0.00047945,120]
[377208297,1754290391018,-400.0,0.00047945,120]
[377208298,1754290391028,-400.0,0.00047945,120]
[377208299,1754290391038,-400.0,0.00047945,120]
[377208300,1754290391047,-400.0,0.00047945,120]
[377208301,1754290391056,-400.0,0.00047945,120]
[377208302,1754290391066,-150.0,0.00047945,7]
[377208303,1754290391075,-400.0,0.00047945,120]
[377208304,1754290391085,-828.91,0.00047945,120]
[377208305,1754290391094,-911.28,0.00047945,120]
[377208306,1754290391104,-586.97,0.00047945,120]
[377208307,1754290391114,-1618.43,0.00047945,120]
[377208308,1754290391123,-449.26167304,0.00047945,120]
[377208309,1754290391133,-1313.84,0.00047945,120]
[377208310,1754290391142,-1058.62,0.00047945,120]
[377208311,1754290391152,-1424.52,0.00047945,120]
[377208312,1754290391161,-1224.73,0.00047945,120]
[377208313,1754290391171,-460.08,0.00047945,120]
[377208314,1754290391180,-461.975391,0.00047945,14]
[377208315,1754290391189,-766.53,0.00047945,120]
[377208316,1754290391199,-1442.12,0.00047945,120]
[377208317,1754290391208,-400.0,0.00047945,120]
[377208318,1754290391217,-461.975388,0.00047945,14]
[377208319,1754290391227,-628.33,0.00047945,120]
[377208320,1754290391236,-497.47,0.00047945,120]
[377208321,1754290391245,-400.0,0.00047945,120]
[377208322,1754290391255,-400.0,0.00047945,120]
[377208323,1754290391265,-1505.72,0.00047945,120]
[377208324,1754290391569,-1302.85,0.00047945,120]
[377208325,1754290391593,-370.01374094,0.00047945,120]
[377208326,1754290391603,-400.0,0.00047945,120]
[377208327,1754290391613,-1326.41,0.00047945,120]
[377208328,1754290391623,-400.0,0.00047945,120]
[377208329,1754290391632,-1051.27,0.00047945,120]
[377208330,1754290391642,-951.87,0.00047945,120]
[377208331,1754290391651,-866.05,0.00047945,120]
[377208332,1754290391661,-889.91,0.00047945,120]
[377208333,1754290391670,-1116.81,0.00047945,120]
[377208334,1754290391679,-802.17,0.00047945,120]
[377208335,1754290391689,-1709.6,0.00047945,120]
[377208336,1754290391699,-196.21235418,0.00047945,120]
[377208337,1754290391712,-400.0,0.00047945,120]
[377208338,1754290391722,-400.0,0.00047945,120]
[377208339,1754290391731,-678.02,0.00047945,120]
[377208340,1754290391742,-400.0,0.00047945,120]
[377208341,1754290391751,-502.8,0.00047945,120]
[377208342,1754290391761,-1003.98,0.00047945,120]
[377208343,1754290391770,-400.0,0.00047945,120]
[377208344,1754290391780,-186.808649,0.00047945,14]
[377208345,1754290391790,-400.0,0.00047945,120]
[377208346,1754290391799,-733.91,0.00047945,120]
[377208347,1754290391810,-400.0,0.00047945,120]
[377208348,1754290391819,-400.0,0.00047945,120]
[377208349,1754290391828,-400.0,0.00047945,120]
[377208350,1754290391838,-520.58,0.00047945,120]
[377208351,1754290391848,-400.0,0.00047945,120]
[377208352,1754290391858,-454.22319399,0.00047945,120]
[377208353,1754290391868,-400.0,0.00047945,120]
[377208354,1754290391877,-1139.57,0.00047945,120]
[377208355,1754290391887,-400.0,0.00047945,120]
[377208356,1754290391896,-400.0,0.00047945,120]
[377208357,1754290391906,-1564.24,0.00047945,120]
[377208358,1754290391916,-400.0,0.00047945,120]
[377208359,1754290391926,-1642.73,0.00047945,120]
[377208360,1754290391936,-1812.69,0.00047945,120]
[377208361,1754290391946,-400.0,0.00047945,120]
[377208362,1754290391956,-985.27,0.00047945,120]
[377208363,1754290391965,-476.8,0.00047945,120]
[377208364,1754290391976,-876.43,0.00047945,120]
[377208365,1754290391987,-400.0,0.00047945,120]
[377208366,1754290391997,-1125.47,0.00047945,120]
[377208367,1754290392007,-400.0,0.00047945,120]
[377208368,1754290392018,-933.76,0.00047945,120]
[377208369,1754290392028,-400.0,0.00047945,120]
[377208370,1754290392039,-976.48,0.00047945,120]
[377208371,1754290392049,-400.0,0.00047945,120]
[377208372,1754290392058,-424.16,0.00047945,120]
[377208373,1754290392068,-416.55,0.00047945,120]
[377208374,1754290392077,-1567.37,0.00047945,120]
[377208375,1754290392087,-500.0,0.00047945,120]
[377208376,1754290392096,-481.83,0.00047945,120]
[377208377,1754290392106,-1650.23,0.00047945,120]
[377208378,1754290392116,-729.67,0.00047945,120]
[377208379,1754290392126,-819.44,0.00047945,120]
[377208380,1754290392136,-400.0,0.00047945,120]
[377208381,1754290392146,-400.0,0.00047945,120]
[377208382,1754290392156,-1610.82,0.00047945,120]
[377208383,1754290392166,-400.0,0.00047945,120]
[377208384,1754290392175,-427.31,0.00047945,120]
[377208385,1754290392184,-514.04,0.00047945,120]
[377208386,1754290392194,-1439.84,0.00047945,120]
[377208387,1754290392204,-959.06,0.00047945,120]
[377208388,1754290392215,-896.51,0.00047945,60]
[377208389,1754290392225,-400.0,0.00047945,120]
[377208390,1754290392236,-1413.05,0.00047945,120]
[377208391,1754290392246,-1161.04,0.00047945,120]
[377208392,1754290392256,-400.0,0.00047945,120]
[377208393,1754290392266,-394.41922167,0.00047945,120]
[377208394,1754290392276,-748.34,0.00047945,120]
[377208395,1754290392286,-428.06,0.00047945,120]
[377208396,1754290392296,-1378.67,0.00047945,30]
[377208397,1754290392306,-1109.79,0.00047945,120]
[377208398,1754290392316,-400.0,0.00047945,120]
[377208399,1754290392327,-400.0,0.00047945,120]
[377208400,1754290392336,-151.0,0.00047945,14]
[377208401,1754290392347,-478.93,0.00047945,120]
[377208402,1754290392358,-400.0,0.00047945,120]
[377208403,1754290392367,-400.0,0.00047945,120]
[377208404,1754290392378,-400.0,0.00047945,120]
[377208405,1754290392388,-400.0,0.00047945,120]
[377208406,1754290392399,-1565.49,0.00047945,120]
[377208407,1754290392410,-520.46,0.00047945,120]
[377208408,1754290392419,-1250.84,0.00047945,120]
[377208409,1754290392637,-417.81,0.00047945,120]
[377208410,1754290392648,-400.0,0.00047945,120]
[377208411,1754290392658,-1440.46,0.00047945,120]
[377208412,1754290392668,-400.0,0.00047945,120]
[377208413,1754290392679,-607.0,0.00047945,120]
[377208414,1754290392689,-400.0,0.00047945,120]
[377208415,1754290392698,-402.12115833,0.00047945,120]
[377208416,1754290392712,-400.0,0.00047945,120]
[377208417,1754290392721,-400.0,0.00047945,120]
[377208418,1754290392731,-400.0,0.00047945,120]
[377208419,1754290392740,-400.0,0.00047945,120]
[377208420,1754290392750,-890.87,0.00047945,120]
[377208421,1754290392760,-400.0,0.00047945,120]
[377208422,1754290392771,-542.74,0.00047945,120]
[377208423,1754290392782,-411.21,0.00047945,120]
[377208424,1754290392792,-400.0,0.00047945,120]
[377208425,1754290392804,-1103.85,0.00047945,120]
[377208426,1754290392815,-400.0,0.00047945,120]
[377208427,1754290392824,-648.08,0.00047945,120]
[377208428,1754290392833,-715.56,0.00047945,120]
[377208429,1754290392842,-396.90973534,0.00047945,120]
[377208430,1754290392852,-1404.29,0.00047945,120]
[377208431,1754290392862,-635.18,0.00047945,120]
[377208432,1754290392872,-492.0,0.00047945,120]
[377208433,1754290392882,-1181.75,0.00047945,120]
[377208434,1754290392891,-1960.928243,0.00047945,120]
[377208435,1754290392901,-684.1,0.00047945,120]
[377208436,1754290392911,-909.02,0.00047945,120]
[377208437,1754290392921,-538.43,0.00047945,120]
[377208438,1754290392931,-1690.433574,0.00047945,120]
[377208439,1754290392941,-400.0,0.00047945,120]
[377208440,1754290392950,-400.0,0.00047945,120]
[377208441,1754290392960,-976.85,0.00047945,120]
[377208442,1754290392972,-523.08,0.00047945,120]
[377208443,1754290392982,-605.26,0.00047945,120]
[377208444,1754290392991,-400.0,0.00047945,120]
[377208445,1754290393000,-388.79313663,0.00047945,120]
[377208446,1754290393010,-1884.130011,0.00047945,120]
[377208447,1754290393020,-400.0,0.00047945,120]
[377208448,1754290393029,-1507.76,0.00047945,120]
[377208449,1754290393039,-400.0,0.00047945,120]
[377208450,1754290393049,-400.0,0.00047945,120]
[377208451,1754290393058,-882.11,0.00047945,120]
[377208452,1754290393068,-1330.07,0.00047945,120]
[377208453,1754290393077,-1157.19,0.00047945,120]
[377208454,1754290393087,-156.609953,0.00047945,120]
[377208455,1754290393096,-400.0,0.00047945,120]
[377208456,1754290393106,-1313.52,0.00047945,120]
[377208457,1754290393115,-928.51,0.00047945,120]
[377208458,1754290393125,-400.0,0.00047945,120]
[377208459,1754290393134,-793.75,0.00047945,60]
[377208460,1754290393144,-578.34,0.00047945,120]
[377208461,1754290393154,-400.0,0.00047945,120]
[377208462,1754290393163,-400.0,0.00047945,120]
[377208463,1754290393173,-400.0,0.00047945,120]
[377208464,1754290393183,-400.0,0.00047945,120]
[377208465,1754290393193,-409.12,0.00047945,120]
[377208466,1754290393202,-400.0,0.00047945,120]
[377208467,1754290393212,-680.89,0.00047945,120]
[377208468,1754290393223,-400.0,0.00047945,120]
[377208469,1754290393232,-489.31,0.00047945,120]
[377208470,1754290393241,-1120.45,0.00047945,120]
[377208471,1754290393251,-1077.23,0.00047945,120]
[377208472,1754290393261,-400.0,0.00047945,120]
[377208473,1754290393270,-400.0,0.00047945,120]
[377208474,1754290393280,-400.0,0.00047945,120]
[377208475,1754290393289,-400.0,0.00047945,120]
[377208476,1754290393299,-1711.4,0.00047945,120]
[377208477,1754290393309,-400.0,0.00047945,120]
[377208478,1754290393319,-727.58,0.00047945,120]
[377208479,1754290393328,-821.7,0.00047945,120]
[377208480,1754290393338,-2047.95,0.00047945,120]
[377208481,1754290393347,-400.0,0.00047945,120]
[377208482,1754290393357,-421.63,0.00047945,120]
[377208483,1754290393366,-4419.29,0.00047945,120]
[377208484,1754290393376,-847.35,0.00047945,120]
[377208485,1754290393387,-666.64,0.00047945,120]
[377208486,1754290393398,-1247.94,0.00047945,120]
[377208487,1754290393408,-1725.99,0.00047945,120]
[377208488,1754290393418,-1477.19,0.00047945,120]
[377208489,1754290393428,-765.07,0.00047945,120]
[377208490,1754290393438,-400.0,0.00047945,120]
[377208491,1754290393448,-400.0,0.00047945,120]
[377208492,1754290393457,-1280.8,0.00047945,2]
[377208493,1754290393467,-400.0,0.00047945,120]
[377208494,1754290393476,-955.38,0.00047945,120]
[377208495,1754290393486,-901.07,0.00047945,120]
[377208496,1754290393495,-400.0,0.00047945,120]
[377208497,1754290393505,-759.02,0.00047945,120]
[377208498,1754290393514,-400.0,0.00047945,120]
[377208499,1754290393524,-1041.79,0.00047945,120]
[377208500,1754290393534,-400.0,0.00047945,120]
[377208501,1754290393543,-414.05,0.00047945,120]
[377208502,1754290393553,-418.9472084,0.00047945,120]
[377208503,1754290393562,-567.57,0.00047945,120]
[377208504,1754290393572,-940.11,0.00047945,120]
[377208505,1754290393581,-1023.01,0.00047945,120]
[377208506,1754290393591,-1024.47,0.00047945,120]
[377208507,1754290393600,-1234.23,0.00047945,120]
[377208508,1754290393611,-1121.36,0.00047945,120]
[377208509,1754290393621,-838.61,0.00047945,120]
[377208510,1754290393630,-1732.74,0.00047945,120]
[377208511,1754290393640,-722.19,0.00047945,120]
[377208512,1754290393650,-400.0,0.00047945,120]
[377208513,1754290393660,-400.0,0.00047945,120]
[377208514,1754290393669,-400.0,0.00047945,120]
[377208515,1754290393679,-407.47,0.00047945,120]
[377208516,1754290393688,-400.0,0.00047945,120]
[377208517,1754290393699,-400.0,0.00047945,120]
[377208518,1754290393713,-1293.91,0.00047945,120]
[377208519,1754290393722,-400.0,0.00047945,120]
[377208520,1754290393732,-944.26,0.00047945,120]
[377208521,1754290393741,-437.67,0.00047945,120]
[377208522,1754290393752,-400.0,0.00047945,120]
[377208523,1754290393762,-664.62,0.00047945,120]
[377208524,1754290393771,-615.77,0.00047945,120]
[377208525,1754290393781,-983.62,0.00047945,120]
[377208526,1754290393792,-1159.72,0.00047945,120]
[377208527,1754290393801,-400.0,0.00047945,120]
[377208528,1754290393811,-589.2,0.00047945,120]
[377208529,1754290393820,-1944.0,0.00047945,120]
[377208530,1754290393830,-704.89,0.00047945,120]
[377208531,1754290393840,-241.16052123,0.00047945,120]